[Event "FIDE World Rapid Chess Championship 2021"]
[White "Babazada, Khazar"]
[Black "Kobalia, Mikhail"]
[WhiteFideId "13413554"]
[BlackFideId "4119150"]
[WhiteElo "2170"]
[BlackElo "2543"]
[Result "1/2-1/2"]
[Round "01"]
[TimeControl "900+10"]
[Date "2021.12.26"]
[WhiteClock "0:09:37"]
[BlackClock "0:01:17"]

1. e4 {[%clk 0:15:18]}  g6 {[%clk 0:15:11]} 2. d4 {[%clk 0:15:24]}  Bg7 {[%clk 0:15:20]} 3. Nc3 {[%clk 0:15:33]}  d6 {[%clk 0:15:28]} 4. Nf3 {[%clk 0:15:41]}  Nf6 {[%clk 0:15:37]} 5. h3 {[%clk 0:15:47]}  O-O {[%clk 0:15:44]} 6. Be2 {[%clk 0:15:50]}  Nbd7 {[%clk 0:15:51]} 7. O-O {[%clk 0:15:38]}  e5 {[%clk 0:15:59]} 8. dxe5 {[%clk 0:15:35]}  dxe5 {[%clk 0:16:07]} 9. Be3 {[%clk 0:15:42]}  Qe7 {[%clk 0:14:54]} 10. Qc1 {[%clk 0:14:46]}  c6 {[%clk 0:14:37]} 11. Nd2 {[%clk 0:13:34]}  Nc5 {[%clk 0:14:43]} 12. a4 {[%clk 0:12:53]}  a5 {[%clk 0:13:35]} 13. b3 {[%clk 0:12:28]}  Ne6 {[%clk 0:13:36]} 14. Nc4 {[%clk 0:12:19]}  Nd4 {[%clk 0:13:04]} 15. Nb6 {[%clk 0:12:16]}  Rb8 {[%clk 0:12:29]} 16. Nxc8 {[%clk 0:12:06]}  Rbxc8 {[%clk 0:12:37]} 17. Bc4 {[%clk 0:12:07]}  Nh5 {[%clk 0:10:29]} 18. Ne2 {[%clk 0:11:44]}  Nxe2+ {[%clk 0:10:09]} 19. Bxe2 {[%clk 0:11:52]}  Nf4 {[%clk 0:10:16]} 20. Bf3 {[%clk 0:11:28]}  h5 {[%clk 0:07:54]} 21. Qd2 {[%clk 0:11:26]}  Qc7 {[%clk 0:07:49]} 22. Rad1 {[%clk 0:11:20]}  Rfd8 {[%clk 0:07:56]} 23. Qc3 {[%clk 0:11:25]}  Ne6 {[%clk 0:07:53]} 24. Qc4 {[%clk 0:10:57]}  Nd4 {[%clk 0:07:57]} 25. Bxd4 {[%clk 0:11:05]}  exd4 {[%clk 0:07:35]} 26. g3 {[%clk 0:11:13]}  h4 {[%clk 0:07:06]} 27. Kg2 {[%clk 0:11:22]}  Qe7 {[%clk 0:06:48]} 28. Rde1 {[%clk 0:11:18]}  d3 {[%clk 0:04:53]} 29. cxd3 {[%clk 0:11:21]}  Rd4 {[%clk 0:05:01]} 30. Qc3 {[%clk 0:11:00]}  hxg3 {[%clk 0:05:01]} 31. fxg3 {[%clk 0:11:06]}  Rcd8 {[%clk 0:04:51]} 32. Qxa5 {[%clk 0:10:03]}  Rxd3 {[%clk 0:04:59]} 33. e5 {[%clk 0:10:13]}  Rxb3 {[%clk 0:04:30]} 34. Re2 {[%clk 0:10:18]}  Rdd3 {[%clk 0:04:24]} 35. e6 {[%clk 0:09:27]}  fxe6 {[%clk 0:04:27]} 36. Qe1 {[%clk 0:09:29]}  Qa3 {[%clk 0:03:39]} 37. Ref2 {[%clk 0:09:22]}  Re3 {[%clk 0:03:41]} 38. Qd2 {[%clk 0:09:28]}  Rbd3 {[%clk 0:03:48]} 39. Qa5 {[%clk 0:09:36]}  Kh7 {[%clk 0:03:16]} 40. Qg5 {[%clk 0:09:35]}  Qc3 {[%clk 0:03:11]} 41. Qh4+ {[%clk 0:09:07]}  Kg8 {[%clk 0:03:17]} 42. Qg4 {[%clk 0:09:11]}  Kh7 {[%clk 0:03:02]} 43. Qh4+ {[%clk 0:09:21]}  Kg8 {[%clk 0:03:02]} 44. Qg4 {[%clk 0:09:30]}  Kh7 {[%clk 0:01:38]} 45. Qh4+ {[%clk 0:09:37]}  Kg8 {[%clk 0:01:17]} 1/2-1/2


[Site "http://www.Chess.com"]

[Event "FIDE World Rapid Chess Championship 2021"]
[White "Gumularz, Szymon"]
[Black "Smirin, Ilia"]
[WhiteFideId "1188062"]
[BlackFideId "2801990"]
[WhiteElo "2452"]
[BlackElo "2663"]
[Result "1/2-1/2"]
[Round "01"]
[TimeControl "900+10"]
[Date "2021.12.26"]
[WhiteClock "0:12:04"]
[BlackClock "0:10:06"]

1. e4 {[%clk 0:15:17]}  c5 {[%clk 0:15:17]} 2. Nf3 {[%clk 0:15:24]}  e6 {[%clk 0:15:25]} 3. c3 {[%clk 0:15:33]}  Nf6 {[%clk 0:15:28]} 4. e5 {[%clk 0:15:40]}  Nd5 {[%clk 0:15:35]} 5. d4 {[%clk 0:15:46]}  cxd4 {[%clk 0:15:43]} 6. cxd4 {[%clk 0:15:54]}  d6 {[%clk 0:15:48]} 7. Bc4 {[%clk 0:16:00]}  Nc6 {[%clk 0:15:52]} 8. O-O {[%clk 0:16:06]}  Be7 {[%clk 0:15:53]} 9. Qe2 {[%clk 0:16:14]}  O-O {[%clk 0:15:41]} 10. Qe4 {[%clk 0:16:21]}  Qb6 {[%clk 0:14:40]} 11. Bd3 {[%clk 0:15:18]}  f5 {[%clk 0:13:56]} 12. exf6 {[%clk 0:12:24]}  Nxf6 {[%clk 0:14:03]} 13. Qe3 {[%clk 0:11:57]}  Nd5 {[%clk 0:10:43]} 14. Qe4 {[%clk 0:11:54]}  Nf6 {[%clk 0:10:40]} 15. Qe3 {[%clk 0:12:03]}  Nd5 {[%clk 0:10:06]} 16. Qe4 {[%clk 0:12:04]} 1/2-1/2


[Site "http://www.Chess.com"]

[Event "FIDE World Rapid Chess Championship 2021"]
[White "Firouzja, Alireza"]
[Black "Costachi, Mihnea"]
[WhiteFideId "12573981"]
[BlackFideId "1217518"]
[WhiteElo "2656"]
[BlackElo "2443"]
[Result "1/2-1/2"]
[Round "01"]
[TimeControl "900+10"]
[Date "2021.12.26"]
[WhiteClock "0:00:24"]
[BlackClock "0:00:24"]

1. e4 {[%clk 0:15:13]}  e5 {[%clk 0:15:17]} 2. Nf3 {[%clk 0:15:18]}  Nc6 {[%clk 0:15:10]} 3. Bb5 {[%clk 0:15:25]}  a6 {[%clk 0:15:18]} 4. Ba4 {[%clk 0:15:33]}  d6 {[%clk 0:14:13]} 5. O-O {[%clk 0:15:11]}  Bd7 {[%clk 0:14:20]} 6. c3 {[%clk 0:15:13]}  g6 {[%clk 0:14:26]} 7. d4 {[%clk 0:15:11]}  Bg7 {[%clk 0:14:33]} 8. h3 {[%clk 0:14:10]}  Nge7 {[%clk 0:13:23]} 9. Be3 {[%clk 0:12:37]}  O-O {[%clk 0:13:05]} 10. Nbd2 {[%clk 0:12:25]}  b5 {[%clk 0:08:12]} 11. Bb3 {[%clk 0:12:15]}  h6 {[%clk 0:07:11]} 12. Re1 {[%clk 0:12:18]}  Kh7 {[%clk 0:06:56]} 13. dxe5 {[%clk 0:11:57]}  dxe5 {[%clk 0:06:26]} 14. Bc5 {[%clk 0:11:58]}  Na5 {[%clk 0:06:05]} 15. Nf1 {[%clk 0:10:10]}  Nb7 {[%clk 0:05:34]} 16. Be3 {[%clk 0:10:12]}  c5 {[%clk 0:05:15]} 17. a4 {[%clk 0:04:05]}  c4 {[%clk 0:05:03]} 18. axb5 {[%clk 0:03:47]}  Bxb5 {[%clk 0:04:14]} 19. Ba2 {[%clk 0:02:47]}  Qc7 {[%clk 0:04:13]} 20. Qe2 {[%clk 0:02:46]}  Na5 {[%clk 0:03:10]} 21. N1d2 {[%clk 0:02:38]}  Rab8 {[%clk 0:02:58]} 22. Bb1 {[%clk 0:01:55]}  Rfd8 {[%clk 0:02:37]} 23. Bc2 {[%clk 0:02:01]}  Nb3 {[%clk 0:01:37]} 24. Bxb3 {[%clk 0:02:04]}  cxb3 {[%clk 0:01:45]} 25. c4 {[%clk 0:02:13]}  Bd7 {[%clk 0:01:25]} 26. Rxa6 {[%clk 0:02:21]}  Nc6 {[%clk 0:01:28]} 27. Ra3 {[%clk 0:02:30]}  Be6 {[%clk 0:00:56]} 28. Nxb3 {[%clk 0:02:01]}  Nd4 {[%clk 0:00:51]} 29. Bxd4 {[%clk 0:02:04]}  exd4 {[%clk 0:00:55]} 30. Nbd2 {[%clk 0:01:01]}  Rxb2 {[%clk 0:00:57]} 31. e5 {[%clk 0:01:09]}  Bf8 {[%clk 0:00:48]} 32. Raa1 {[%clk 0:01:04]}  d3 {[%clk 0:00:44]} 33. Qe3 {[%clk 0:01:00]}  Bc5 {[%clk 0:00:36]} 34. Qf4 {[%clk 0:01:07]}  Qb6 {[%clk 0:00:45]} 35. Rf1 {[%clk 0:01:04]}  Be7 {[%clk 0:00:24]} 36. Ne4 {[%clk 0:00:48]}  Bf5 {[%clk 0:00:19]} 37. g4 {[%clk 0:00:41]}  Bxe4 {[%clk 0:00:24]} 38. Qxe4 {[%clk 0:00:46]}  Bc5 {[%clk 0:00:27]} 39. Qf4 {[%clk 0:00:34]}  Qe6 {[%clk 0:00:37]} 40. Rad1 {[%clk 0:00:22]}  Rc2 {[%clk 0:00:45]} 41. Rc1 {[%clk 0:00:16]}  Re2 {[%clk 0:00:42]} 42. Kg2 {[%clk 0:00:19]}  Ra8 {[%clk 0:00:43]} 43. Nd4 {[%clk 0:00:19]}  Bxd4 {[%clk 0:00:33]} 44. Qxd4 {[%clk 0:00:28]}  d2 {[%clk 0:00:30]} 45. Rcd1 {[%clk 0:00:33]}  Ra2 {[%clk 0:00:24]} 46. Qf4 {[%clk 0:00:24]} 1/2-1/2


[Site "http://www.Chess.com"]

[Event "FIDE World Rapid Chess Championship 2021"]
[White "Fridman, Daniel"]
[Black "Mitrabha, Guha"]
[WhiteFideId "11600454"]
[BlackFideId "5057000"]
[WhiteElo "2542"]
[BlackElo "2107"]
[Result "1-0"]
[Round "01"]
[TimeControl "900+10"]
[Date "2021.12.26"]
[WhiteClock "0:03:56"]
[BlackClock "0:05:19"]

1. d4 {[%clk 0:15:19]}  Nf6 {[%clk 0:15:18]} 2. Nf3 {[%clk 0:15:26]}  b6 {[%clk 0:15:27]} 3. g3 {[%clk 0:15:34]}  Bb7 {[%clk 0:15:35]} 4. c4 {[%clk 0:15:43]}  g6 {[%clk 0:15:43]} 5. Bg2 {[%clk 0:15:51]}  Bg7 {[%clk 0:15:51]} 6. O-O {[%clk 0:15:58]}  O-O {[%clk 0:15:58]} 7. d5 {[%clk 0:16:02]}  a5 {[%clk 0:15:34]} 8. Nc3 {[%clk 0:16:08]}  Na6 {[%clk 0:15:43]} 9. e4 {[%clk 0:16:15]}  d6 {[%clk 0:15:48]} 10. Re1 {[%clk 0:15:53]}  Nc5 {[%clk 0:15:50]} 11. e5 {[%clk 0:15:58]}  Nfd7 {[%clk 0:15:34]} 12. Bf4 {[%clk 0:15:57]}  dxe5 {[%clk 0:15:00]} 13. Nxe5 {[%clk 0:16:04]}  Nxe5 {[%clk 0:15:09]} 14. Bxe5 {[%clk 0:16:13]}  Bxe5 {[%clk 0:15:17]} 15. Rxe5 {[%clk 0:16:21]}  e6 {[%clk 0:15:26]} 16. dxe6 {[%clk 0:15:37]}  fxe6 {[%clk 0:12:58]} 17. Bxb7 {[%clk 0:13:19]}  Nxb7 {[%clk 0:13:06]} 18. Rxe6 {[%clk 0:13:26]}  Nc5 {[%clk 0:13:15]} 19. Qxd8 {[%clk 0:11:18]}  Raxd8 {[%clk 0:13:24]} 20. Re2 {[%clk 0:11:27]}  Rd4 {[%clk 0:13:33]} 21. b3 {[%clk 0:11:24]}  a4 {[%clk 0:12:49]} 22. Nb5 {[%clk 0:11:03]}  Rd7 {[%clk 0:12:27]} 23. b4 {[%clk 0:11:06]}  Na6 {[%clk 0:12:36]} 24. a3 {[%clk 0:11:11]}  c5 {[%clk 0:12:45]} 25. Nc3 {[%clk 0:10:02]}  cxb4 {[%clk 0:12:33]} 26. axb4 {[%clk 0:10:10]}  Nxb4 {[%clk 0:12:42]} 27. Rb1 {[%clk 0:09:56]}  Nc6 {[%clk 0:09:35]} 28. Nxa4 {[%clk 0:10:03]}  Nd4 {[%clk 0:09:43]} 29. Reb2 {[%clk 0:09:58]}  Nf3+ {[%clk 0:08:45]} 30. Kg2 {[%clk 0:09:52]}  Re7 {[%clk 0:08:22]} 31. Nxb6 {[%clk 0:08:41]}  Ne1+ {[%clk 0:08:30]} 32. Kf1 {[%clk 0:08:49]}  Nf3 {[%clk 0:08:37]} 33. h4 {[%clk 0:07:02]}  Ref7 {[%clk 0:07:45]} 34. Kg2 {[%clk 0:06:48]}  g5 {[%clk 0:07:43]} 35. hxg5 {[%clk 0:06:49]}  Nxg5 {[%clk 0:07:51]} 36. Re1 {[%clk 0:06:39]}  Nf3 {[%clk 0:07:45]} 37. Re4 {[%clk 0:06:11]}  h5 {[%clk 0:07:50]} 38. Nd5 {[%clk 0:05:30]}  h4 {[%clk 0:07:18]} 39. Rg4+ {[%clk 0:05:18]}  Kh7 {[%clk 0:06:26]} 40. Nf4 {[%clk 0:05:19]}  Ne1+ {[%clk 0:06:25]} 41. Kf1 {[%clk 0:05:14]}  Nf3 {[%clk 0:06:33]} 42. Kg2 {[%clk 0:04:53]}  Ne1+ {[%clk 0:06:41]} 43. Kh3 {[%clk 0:04:47]}  hxg3 {[%clk 0:05:49]} 44. Kxg3 {[%clk 0:04:32]}  Nd3 {[%clk 0:04:44]} 45. Nxd3 {[%clk 0:04:17]}  Rf3+ {[%clk 0:04:53]} 46. Kg2 {[%clk 0:04:24]}  Rxd3 {[%clk 0:05:02]} 47. Rc2 {[%clk 0:03:20]}  Rd6 {[%clk 0:04:19]} 48. c5 {[%clk 0:03:21]}  Rdf6 {[%clk 0:04:23]} 49. c6 {[%clk 0:03:04]}  Rc8 {[%clk 0:04:32]} 50. c7 {[%clk 0:03:12]}  Rf7 {[%clk 0:04:40]} 51. Rc3 {[%clk 0:03:18]}  Kh8 {[%clk 0:04:38]} 52. Rh3+ {[%clk 0:03:22]}  Rh7 {[%clk 0:04:42]} 53. Rxh7+ {[%clk 0:03:30]}  Kxh7 {[%clk 0:04:51]} 54. Rc4 {[%clk 0:03:39]}  Kg6 {[%clk 0:05:00]} 55. f4 {[%clk 0:03:47]}  Kf5 {[%clk 0:05:09]} 56. Kf3 {[%clk 0:03:56]}  Ke6 {[%clk 0:05:19]} 1-0


[Site "http://www.Chess.com"]

[Event "FIDE World Rapid Chess Championship 2021"]
[White "Gukesh, D"]
[Black "Kadric, Denis"]
[WhiteFideId "46616543"]
[BlackFideId "14403803"]
[WhiteElo "2050"]
[BlackElo "2542"]
[Result "1-0"]
[Round "01"]
[TimeControl "900+10"]
[Date "2021.12.26"]
[WhiteClock "0:03:21"]
[BlackClock "0:01:25"]

1. d4 {[%clk 0:15:17]}  d6 {[%clk 0:15:19]} 2. c4 {[%clk 0:15:20]}  e5 {[%clk 0:15:20]} 3. Nc3 {[%clk 0:14:10]}  exd4 {[%clk 0:15:21]} 4. Qxd4 {[%clk 0:14:18]}  Nf6 {[%clk 0:15:30]} 5. g3 {[%clk 0:13:57]}  Nc6 {[%clk 0:15:28]} 6. Qd2 {[%clk 0:14:05]}  Be6 {[%clk 0:15:22]} 7. e4 {[%clk 0:14:12]}  a5 {[%clk 0:14:30]} 8. b3 {[%clk 0:12:30]}  a4 {[%clk 0:14:38]} 9. Rb1 {[%clk 0:12:38]}  axb3 {[%clk 0:14:47]} 10. axb3 {[%clk 0:12:47]}  g6 {[%clk 0:14:14]} 11. Bg2 {[%clk 0:12:55]}  Bg7 {[%clk 0:14:23]} 12. Nge2 {[%clk 0:13:03]}  O-O {[%clk 0:14:32]} 13. O-O {[%clk 0:13:07]}  Nd7 {[%clk 0:13:56]} 14. Nd5 {[%clk 0:13:09]}  Nc5 {[%clk 0:13:17]} 15. b4 {[%clk 0:12:38]}  Na4 {[%clk 0:13:26]} 16. Qc2 {[%clk 0:12:27]}  Ne5 {[%clk 0:10:56]} 17. Nef4 {[%clk 0:11:21]}  Bd7 {[%clk 0:08:28]} 18. Bd2 {[%clk 0:11:10]}  b5 {[%clk 0:07:34]} 19. c5 {[%clk 0:09:59]}  Nc4 {[%clk 0:07:16]} 20. cxd6 {[%clk 0:10:01]}  cxd6 {[%clk 0:07:22]} 21. Rb3 {[%clk 0:09:31]}  Rc8 {[%clk 0:07:18]} 22. Qd3 {[%clk 0:09:10]}  Nab2 {[%clk 0:06:50]} 23. Qe2 {[%clk 0:09:18]}  Nxd2 {[%clk 0:06:59]} 24. Qxd2 {[%clk 0:09:26]}  Nc4 {[%clk 0:07:07]} 25. Qe2 {[%clk 0:09:18]}  Re8 {[%clk 0:07:15]} 26. Rd1 {[%clk 0:09:14]}  Kh8 {[%clk 0:06:21]} 27. h4 {[%clk 0:08:25]}  f5 {[%clk 0:06:02]} 28. Nh3 {[%clk 0:06:12]}  Ne5 {[%clk 0:05:22]} 29. Re3 {[%clk 0:05:14]}  Bh6 {[%clk 0:04:54]} 30. Ng5 {[%clk 0:04:40]}  fxe4 {[%clk 0:02:51]} 31. Rxe4 {[%clk 0:04:34]}  Bxg5 {[%clk 0:02:54]} 32. hxg5 {[%clk 0:04:43]}  Bf5 {[%clk 0:02:49]} 33. Re3 {[%clk 0:04:51]}  Rc2 {[%clk 0:01:45]} 34. Qxb5 {[%clk 0:03:59]}  Rf8 {[%clk 0:01:43]} 35. Nf6 {[%clk 0:03:21]}  Rxf6 {[%clk 0:01:25]} 1-0


[Site "http://www.Chess.com"]

[Event "FIDE World Rapid Chess Championship 2021"]
[White "Heberla, Bartlomiej"]
[Black "Matlakov, Maxim"]
[WhiteFideId "1115120"]
[BlackFideId "4168003"]
[WhiteElo "2437"]
[BlackElo "2652"]
[Result "1/2-1/2"]
[Round "01"]
[TimeControl "900+10"]
[Date "2021.12.26"]
[WhiteClock "0:14:35"]
[BlackClock "0:10:32"]

1. d4 {[%clk 0:15:13]}  Nf6 {[%clk 0:15:18]} 2. Nf3 {[%clk 0:15:20]}  d5 {[%clk 0:15:26]} 3. c4 {[%clk 0:15:28]}  e6 {[%clk 0:15:34]} 4. Nc3 {[%clk 0:15:36]}  Bb4 {[%clk 0:15:41]} 5. Qa4+ {[%clk 0:15:44]}  Nc6 {[%clk 0:15:49]} 6. Bg5 {[%clk 0:15:52]}  dxc4 {[%clk 0:15:34]} 7. e3 {[%clk 0:15:59]}  Bd7 {[%clk 0:15:33]} 8. Qc2 {[%clk 0:16:07]}  b5 {[%clk 0:15:30]} 9. Be2 {[%clk 0:16:15]}  a6 {[%clk 0:13:55]} 10. O-O {[%clk 0:16:20]}  Be7 {[%clk 0:14:03]} 11. Bxf6 {[%clk 0:16:20]}  Bxf6 {[%clk 0:14:09]} 12. Ne4 {[%clk 0:16:27]}  Be7 {[%clk 0:13:46]} 13. b3 {[%clk 0:16:34]}  cxb3 {[%clk 0:13:43]} 14. axb3 {[%clk 0:16:41]}  Nb4 {[%clk 0:13:31]} 15. Qc3 {[%clk 0:15:23]}  Nd5 {[%clk 0:13:10]} 16. Qc2 {[%clk 0:15:31]}  Nb4 {[%clk 0:12:53]} 17. Qc3 {[%clk 0:15:38]}  Nd5 {[%clk 0:10:32]} 18. Qc2 {[%clk 0:15:46]}  O-O {[%clk 0:06:15]} 19. Rfc1 {[%clk 0:15:43]}  a5 {[%clk 0:06:08]} 20. Qc3 {[%clk 0:14:42]}  Nb4 {[%clk 0:10:32]} 21. Rf1 {[%clk 0:14:36]}  Bc6 {[%clk 0:10:32]} 22. Nc5 {[%clk 0:14:35]}  Re8 {[%clk 0:10:32]} 1/2-1/2


[Site "http://www.Chess.com"]

[Event "FIDE World Rapid Chess Championship 2021"]
[White "Tari, Aryan"]
[Black "Yunusov, Mukhammad"]
[WhiteFideId "1510045"]
[BlackFideId "14700930"]
[WhiteElo "2542"]
[BlackElo "1832"]
[Result "1-0"]
[Round "01"]
[TimeControl "900+10"]
[Date "2021.12.26"]
[WhiteClock "0:07:33"]
[BlackClock "23:59:53"]

1. d4 {[%clk 0:15:19]}  d5 {[%clk 0:15:18]} 2. Nf3 {[%clk 0:15:27]}  Nf6 {[%clk 0:15:26]} 3. Bf4 {[%clk 0:15:36]}  c5 {[%clk 0:15:30]} 4. e3 {[%clk 0:15:44]}  Nc6 {[%clk 0:15:38]} 5. Nbd2 {[%clk 0:15:53]}  Bg4 {[%clk 0:14:20]} 6. c3 {[%clk 0:15:57]}  cxd4 {[%clk 0:14:14]} 7. exd4 {[%clk 0:16:05]}  Qb6 {[%clk 0:14:17]} 8. Qc1 {[%clk 0:15:41]}  e6 {[%clk 0:14:12]} 9. Bd3 {[%clk 0:15:49]}  Be7 {[%clk 0:14:07]} 10. O-O {[%clk 0:15:56]}  Rc8 {[%clk 0:13:47]} 11. Ne5 {[%clk 0:15:32]}  Nxe5 {[%clk 0:11:11]} 12. Bxe5 {[%clk 0:15:38]}  O-O {[%clk 0:10:34]} 13. Qc2 {[%clk 0:15:33]}  g6 {[%clk 0:08:19]} 14. Rae1 {[%clk 0:15:13]}  Nd7 {[%clk 0:06:19]} 15. Bf4 {[%clk 0:14:56]}  Bf6 {[%clk 0:06:08]} 16. Nb3 {[%clk 0:13:30]}  Rfe8 {[%clk 0:05:25]} 17. h3 {[%clk 0:12:59]}  Bf5 {[%clk 0:05:22]} 18. Bxf5 {[%clk 0:13:07]}  exf5 {[%clk 0:05:29]} 19. Qd2 {[%clk 0:12:56]}  Qb5 {[%clk 0:04:32]} 20. Nc1 {[%clk 0:12:01]}  Nb6 {[%clk 0:02:07]} 21. Nd3 {[%clk 0:12:09]}  Rxe1 {[%clk 0:01:08]} 22. Rxe1 {[%clk 0:12:17]}  Re8 {[%clk 0:00:56]} 23. b3 {[%clk 0:11:31]}  Rxe1+ {[%clk 0:00:35]} 24. Nxe1 {[%clk 0:11:39]}  Qe8 {[%clk 0:00:31]} 25. Nd3 {[%clk 0:11:43]}  Nd7 {[%clk 0:00:35]} 26. a4 {[%clk 0:10:34]}  a5 {[%clk 0:00:37]} 27. Be3 {[%clk 0:08:33]}  Qe7 {[%clk 0:00:21]} 28. Nf4 {[%clk 0:08:37]}  Qd6 {[%clk 0:00:18]} 29. Qd3 {[%clk 0:08:46]}  Qc6 {[%clk 0:00:11]} 30. Bd2 {[%clk 0:08:25]}  Bg7 {[%clk 0:00:13]} 31. Qe3 {[%clk 0:07:20]}  Nf8 {[%clk 0:00:18]} 32. Qf3 {[%clk 0:07:25]}  Bh6 {[%clk 0:00:22]} 33. Nxd5 {[%clk 0:07:33]}  Bg7 {[%clk 23:59:53]} 1-0


[Site "http://www.Chess.com"]

[Event "FIDE World Rapid Chess Championship 2021"]
[White "Aditya, Mittal"]
[Black "Zvjaginsev, Vadim"]
[WhiteFideId "35042025"]
[BlackFideId "4113403"]
[WhiteElo "1488"]
[BlackElo "2539"]
[Result "1-0"]
[Round "01"]
[TimeControl "900+10"]
[Date "2021.12.26"]
[WhiteClock "0:01:13"]
[BlackClock "0:00:56"]

1. d4 {[%clk 0:15:17]}  Nf6 {[%clk 0:15:09]} 2. c4 {[%clk 0:15:26]}  d6 {[%clk 0:15:14]} 3. Nc3 {[%clk 0:15:25]}  g6 {[%clk 0:15:20]} 4. e4 {[%clk 0:15:33]}  Bg7 {[%clk 0:15:28]} 5. Be2 {[%clk 0:15:42]}  O-O {[%clk 0:15:35]} 6. Be3 {[%clk 0:15:51]}  c5 {[%clk 0:15:25]} 7. d5 {[%clk 0:15:59]}  e6 {[%clk 0:15:14]} 8. Nf3 {[%clk 0:16:07]}  exd5 {[%clk 0:15:16]} 9. cxd5 {[%clk 0:16:15]}  Bg4 {[%clk 0:14:27]} 10. Nd2 {[%clk 0:16:23]}  Bxe2 {[%clk 0:14:34]} 11. Qxe2 {[%clk 0:16:31]}  Nbd7 {[%clk 0:14:29]} 12. O-O {[%clk 0:16:28]}  Re8 {[%clk 0:14:37]} 13. h3 {[%clk 0:15:41]}  a6 {[%clk 0:14:17]} 14. a4 {[%clk 0:15:50]}  Rb8 {[%clk 0:14:26]} 15. Bf4 {[%clk 0:14:30]}  Ne5 {[%clk 0:12:50]} 16. a5 {[%clk 0:13:15]}  Nfd7 {[%clk 0:12:15]} 17. Rfb1 {[%clk 0:11:13]}  f5 {[%clk 0:11:18]} 18. Be3 {[%clk 0:10:02]}  Qh4 {[%clk 0:10:11]} 19. exf5 {[%clk 0:09:35]}  gxf5 {[%clk 0:10:17]} 20. Ra4 {[%clk 0:09:43]}  Qf6 {[%clk 0:10:07]} 21. Nf3 {[%clk 0:08:13]}  Nxf3+ {[%clk 0:08:19]} 22. Qxf3 {[%clk 0:08:21]}  Ne5 {[%clk 0:08:17]} 23. Qd1 {[%clk 0:07:42]}  b5 {[%clk 0:07:33]} 24. axb6 {[%clk 0:07:43]}  Rxb6 {[%clk 0:07:42]} 25. Ne2 {[%clk 0:07:18]}  Ng6 {[%clk 0:07:39]} 26. Qd2 {[%clk 0:06:17]}  Rxb2 {[%clk 0:04:45]} 27. Rxb2 {[%clk 0:06:26]}  Qxb2 {[%clk 0:04:54]} 28. Qxb2 {[%clk 0:06:17]}  Bxb2 {[%clk 0:05:02]} 29. Rxa6 {[%clk 0:06:14]}  Be5 {[%clk 0:04:50]} 30. f4 {[%clk 0:05:24]}  Bg7 {[%clk 0:03:49]} 31. Kf2 {[%clk 0:05:29]}  Rd8 {[%clk 0:03:56]} 32. Ra7 {[%clk 0:04:52]}  Kf8 {[%clk 0:03:22]} 33. Bd2 {[%clk 0:04:35]}  Ne7 {[%clk 0:03:20]} 34. Ba5 {[%clk 0:04:36]}  Rc8 {[%clk 0:03:04]} 35. Bc7 {[%clk 0:04:02]}  Nxd5 {[%clk 0:02:58]} 36. Bxd6+ {[%clk 0:04:11]}  Kg8 {[%clk 0:03:07]} 37. Ra5 {[%clk 0:03:42]}  Nc3 {[%clk 0:02:59]} 38. Ng3 {[%clk 0:02:40]}  Ne4+ {[%clk 0:02:09]} 39. Nxe4 {[%clk 0:02:49]}  fxe4 {[%clk 0:02:18]} 40. Ke3 {[%clk 0:02:35]}  c4 {[%clk 0:02:27]} 41. Kxe4 {[%clk 0:02:21]}  Rd8 {[%clk 0:01:04]} 42. Be5 {[%clk 0:02:23]}  Bxe5 {[%clk 0:01:12]} 43. Kxe5 {[%clk 0:01:13]}  Rc8 {[%clk 0:00:57]} 44. Ra2 {[%clk 0:01:22]}  c3 {[%clk 0:01:00]} 45. Rc2 {[%clk 0:01:31]}  Rc4 {[%clk 0:00:51]} 46. g3 {[%clk 0:01:40]}  Rc6 {[%clk 0:00:29]} 47. Kd5 {[%clk 0:01:35]}  Rc8 {[%clk 0:00:16]} 48. Kd4 {[%clk 0:01:44]}  Rd8+ {[%clk 0:00:19]} 49. Kxc3 {[%clk 0:01:52]}  Kf7 {[%clk 0:00:28]} 50. Rd2 {[%clk 0:01:52]}  Ra8 {[%clk 0:00:29]} 51. Kd4 {[%clk 0:01:51]}  Ra1 {[%clk 0:00:29]} 52. Ke5 {[%clk 0:01:55]}  Ra3 {[%clk 0:00:33]} 53. Rg2 {[%clk 0:01:15]}  Kg6 {[%clk 0:00:27]} 54. f5+ {[%clk 0:00:51]}  Kg5 {[%clk 0:00:34]} 55. h4+ {[%clk 0:00:49]}  Kg4 {[%clk 0:00:35]} 56. f6 {[%clk 0:00:57]}  Rf3 {[%clk 0:00:20]} 57. Ke6 {[%clk 0:01:00]}  Kh5 {[%clk 0:00:13]} 58. g4+ {[%clk 0:00:40]}  Kxh4 {[%clk 0:00:20]} 59. f7 {[%clk 0:00:37]}  Kg5 {[%clk 0:00:16]} 60. Ke7 {[%clk 0:00:33]}  Re3+ {[%clk 0:00:24]} 61. Kd7 {[%clk 0:00:37]}  Rf3 {[%clk 0:00:30]} 62. Ke7 {[%clk 0:00:46]}  Re3+ {[%clk 0:00:39]} 63. Kd7 {[%clk 0:00:56]}  Rf3 {[%clk 0:00:48]} 64. Ke8 {[%clk 0:01:05]}  Re3+ {[%clk 0:00:56]} 65. Kf8 {[%clk 0:01:13]} 1-0


[Site "http://www.Chess.com"]